[Event "45th FIDE Olympiad 2024"]
[Site "Budapest"]
[Date "2024.09.15"]
[Round "5.22"]
[White "Panjwani, Raja"]
[Black "Tabatabaei, M. Amin"]
[Result "0-1"]
[ECO "A17"]
[WhiteElo "2460"]
[BlackElo "2714"]
[Annotator "TA"]
[PlyCount "96"]
[EventDate "2024.09.05"]
[EventType "team-tourn"]
[EventCountry "HUN"]
[SourceTitle "playchess.com"]
[Source "ChessBase"]
[SourceQuality "1"]
[WhiteTeam "Canada"]
[BlackTeam "Iran"]
[WhiteTeamCountry "CAN"]
[BlackTeamCountry "IRI"]
[TimeControl "40/5400+30:1800+30"]

{[%evp 9,96,0,0,0,0,2,0,21,8,0,-1,3,8,-3,0,0,16,13,16,22,16,16,21,-109,-108,-116,0,0,0,-10,0,0,0,-25,-18,-8,-7,-14,31,-31,-33,-76,-87,-101,-71,-79,-66,-118,-108,-166,-158,-175,-125,-202,-191,-240,-240,-258,-280,-299,-292,-380,-390,-392,-364,-340,-312,-325,-304,-568,-455,-455,-440,-777,-734,-1474,-1406,-1331,-1276,-1016,-627,-721,-707,-706,-685,-3903,-2654,-1829,-1356]} 1. Nf3 {[%emt 0:00:03]} Nf6 {[%emt 0:01:37]} 2. c4 {[%emt 0:00:09]} e6 {[%emt 0:00:07]} 3. Nc3 {[%emt 0:00:29]} d5 {[%emt 0:00:59]} 4. e3 {[%emt 0:00:16]} Bd6 {[%emt 0:00:52]} 5. b3 {[%emt 0:00:18]} O-O {[%emt 0:00:08]} 6. Bb2 {[%emt 0:00:07]} Re8 {[%emt 0:00:06]} 7. Nb5 {[%emt 0:00:09]} Be7 {[%emt 0:00:40]} 8. Be5 {[%emt 0:00:10] The position is equal.} Na6 {[%emt 0:00:10]} 9. Be2 {[%emt 0:00:06]} c6 {[%emt 0:00:53]} 10. Nc3 {[%emt 0:00:08]} Ne4 {[%emt 0:00:05]} 11. Qc2 {[%emt 0:00:08]} f6 {[%emt 0:01:15]} 12. Bg3 {[%emt 0:00:06]} Nb4 {[%emt 0:01:24]} 13. Qb1 {[%emt 0:00:10]} e5 {[%emt 0:00:37]} 14. cxd5 {[%emt 0:00:12]} Nxc3 {[%emt 0:00:53]} 15. dxc3 {[%emt 0:00:06] aiming for dxc6.} Nxd5 {[%emt 0:00:03]} 16. O-O {[%emt 0:00:11]} (16. Bd3 $11) 16... Nxc3 $17 {[%emt 0:24:17]} 17. Bc4+ {[%emt 0:00:09]} Nd5 {[%emt 0:15:45]} ({Better is} 17... Kh8 $17 18. Qc2 Nd5) 18. Bd3 $11 {[%emt 0:10:26]} h6 {[%emt 0:02:29]} 19. Bg6 {[%emt 0:14:33][%cal Of1d1] [#]} Be6 $1 {[%emt 0:01:47]} 20. e4 {[%emt 0:02:18][%cal Og6e8]} (20. Nh4 $5) 20... Nc3 {[%emt 0:11:42][%cal Bd5c3,Bc3b5,Bb5d4][%mdl 32]} 21. Qc2 {[%emt 0:00:30][%cal Og6e8] [#]} Qa5 $1 {[%emt 0:00:18]} 22. Bxe8 {[%emt 0:00:30]} Rxe8 {[%emt 0:00:01]} 23. Nh4 {[%emt 0:21:13]} Rd8 {[%emt 0:03:05][%mdl 1024] Black has compensation.} 24. Rfc1 {[%emt 0:09:45]} (24. Kh1 $14) 24... Ba3 $15 {[%emt 0:03:01]} 25. Re1 {[%emt 0:05:00]} (25. Qxc3 $2 Rd1+ 26. Rxd1 Qxc3 $19) 25... Nb5 {[%emt 0:04:06] Black has more active pieces.} 26. Nf3 {[%emt 0:05:43] Inhibits Rd2.} Qc3 {[%emt 0:02:16]} 27. Qe2 {[%emt 0:01:54]} Bg4 $36 {[%emt 0:03:19][%mdl 2048] Black fights for an advantage.} 28. Red1 {[%emt 0:08:00]} (28. Qf1 $15) 28... Nd4 $17 {[%emt 0:04:41]} 29. Qc4+ {[%emt 0:00:15]} (29. Qf1 $17 {might work better.}) 29... Qxc4 $19 {[%emt 0:00:06]} 30. bxc4 {[%emt 0:00:04]} g5 {[%emt 0:07:46]} (30... Nxf3+ 31. gxf3 Rxd1+ 32. Rxd1 $16) ({Black should play} 30... c5 $19 31. h3 Bxf3 (31... Nxf3+ 32. gxf3 Rxd1+ 33. Rxd1 $14) 32. gxf3 Kf7 (32... Nxf3+ $2 33. Kg2 $17)) 31. Kf1 {[%emt 0:01:47]} (31. Rdb1 $17 {was necessary.}) 31... Be6 {[%emt 0:03:46]} 32. Nd2 {[%emt 0:00:09]} (32. Nxd4 $142 exd4 33. Kg1) 32... a5 {[%emt 0:02:01]} 33. Rab1 {[%emt 0:04:29] [#]} b5 {[%emt 0:00:41]} 34. cxb5 {[%emt 0:00:13]} cxb5 {[%emt 0:00:06][%cal Oa5a4]} 35. f3 {[%emt 0:00:45] [#] White is weak on the light squares} a4 {[%emt 0:02:20] Repels Nb3} (35... Bxa2 $2 {is the wrong capture.} 36. Ra1 Nc2 37. Rxa2 $18) 36. Bf2 {[%emt 0:00:58]} b4 {[%emt 0:00:44] White must now prevent ...Nc2.} (36... Bxa2 $2 {loses.} 37. Ra1 $18) 37. Bxd4 {[%emt 0:04:23]} Rxd4 {[%emt 0:00:57]} 38. Ke2 {[%emt 0:01:43]} h5 {[%emt 0:02:23]} ({Much less strong is} 38... Bxa2 39. Ra1 b3 40. Rxa2 bxa2 41. Ra1 $19) 39. Ra1 $2 {[%emt 0:05:23]} (39. Rh1 {was worth a try.}) 39... Bb2 {[%emt 0:00:09][%cal Ob2c3] ...Bc3! is the strong threat. Black is clearly winning.} 40. Rab1 {[%emt 0:01:47]} Bc3 {[%emt 0:02:21]} 41. a3 {[%emt 0:31:33]} (41. Rbc1 $142 Bxa2 42. Rc2) 41... bxa3 {[%emt 0:30:25] Hoping for ...a2.} 42. Rb8+ {[%emt 0:02:44]} Kg7 {[%emt 0:00:00] And now ...a2 would win.} 43. Rb7+ {[%emt 0:00:00]} Kg6 {[%emt 0:00:00] ...a2 would now be deadly.} 44. Rc7 {[%emt 0:00:00]} Bxd2 {[%emt 0:00:00]} 45. Rxd2 {[%emt 0:00:00]} Bc4+ {[%emt 0:00:00]} 46. Rxc4 {[%emt 0:00:00]} Rxc4 {[%emt 0:00:00]} 47. Rd3 {[%emt 0:00:00]} Rc2+ {[%emt 0:00:00]} 48. Ke3 {[%emt 0:00:00]} a2 {[%emt 0:00:00] Weighted Error Value: White=0.61/Black=0.23 (precise) .  Mistake:       	White=8     	Black=2      Inaccurate:     	White=3     	Black=1      OK:         	White=15    	Black=17     Best:        	White=3     	Black=6} 0-1

[Event "45th FIDE Olympiad 2024"]
[Site "Budapest"]
[Date "2024.09.15"]
[Round "5.22"]
[White "Alshnaiber, Yazeed"]
[Black "Kyaw, Zay Ya"]
[Result "1-0"]
[ECO "B01"]
[WhiteElo "1889"]
[BlackElo "1818"]
[PlyCount "83"]
[EventDate "2024.09.05"]
[EventType "team-tourn"]
[EventCountry "HUN"]
[WhiteTeam "Saudi Arabia"]
[BlackTeam "Myanmar"]
[WhiteTeamCountry "SAU"]
[BlackTeamCountry "MYA"]
[TimeControl "40/5400+30:1800+30"]

1. e4 d5 2. exd5 Qxd5 3. Nc3 Qa5 4. d4 c6 5. Nf3 Bg4 6. h3 Bh5 7. g4 Bg6 8. Ne5 Nf6 9. h4 Nd5 10. Bd2 Nxc3 11. Bxc3 Qd5 12. Rg1 Qe4+ 13. Kd2 Qf4+ 14. Ke1 Qh2 15. Nf3 Qd6 16. Bd3 Nd7 17. h5 Bxd3 18. Qxd3 h6 19. Rd1 f6 20. Qg6+ Kd8 21. Kf1 Kc7 22. Kg2 Rd8 23. Rge1 Nb6 24. Ba5 Kb8 25. Bxb6 axb6 26. c4 Qb4 27. d5 c5 28. b3 b5 29. Qe4 Qa5 30. Nh4 e5 31. dxe6 Be7 32. Nf5 Qc7 33. Rd7 Rxd7 34. exd7 Bd8 35. Qe8 Rh7 36. Qg6 Qf4 37. Qxh7 Qxg4+ 38. Ng3 Qxd7 39. Qf5 Qc6+ 40. Qd5 Qxd5+ 41. cxd5 Kc7 42. Nf5 1-0

[Event "45th FIDE Olympiad 2024"]
[Site "Budapest"]
[Date "2024.09.15"]
[Round "5.23"]
[White "Daneshvar, Bardiya"]
[Black "Thavandiran, Shiyam"]
[Result "1-0"]
[ECO "A20"]
[WhiteElo "2598"]
[BlackElo "2388"]
[Annotator "RC"]
[PlyCount "111"]
[EventDate "2024.09.05"]
[EventType "team-tourn"]
[EventCountry "HUN"]
[SourceTitle "playchess.com"]
[Source "ChessBase"]
[SourceQuality "1"]
[WhiteTeam "Iran"]
[BlackTeam "Canada"]
[WhiteTeamCountry "IRI"]
[BlackTeamCountry "CAN"]
[TimeControl "40/5400+30:1800+30"]

1. g3 {[%emt 0:00:05]} e5 {[%emt 0:01:42]} 2. c4 {[%emt 0:00:04]} Nf6 {[%emt 0:00:09]} 3. Bg2 {[%emt 0:00:05]} h6 {[%emt 0:00:04]} 4. Nf3 {[%emt 0:00:25]} e4 {[%emt 0:00:41]} 5. Nd4 {[%emt 0:00:03]} Nc6 {[%emt 0:00:04]} 6. Nc2 {[%emt 0:01:03]} d5 {[%emt 0:11:01]} 7. cxd5 {[%emt 0:08:54]} Qxd5 {[%emt 0:00:54]} 8. Nc3 {[%emt 0:02:18]} Qe5 {[%emt 0:05:03]} 9. O-O {[%emt 0:00:23]} Bf5 {[%emt 0:02:18]} 10. Ne3 {[%emt 0:01:10]} Bg6 {[%emt 0:00:59]} 11. Qa4 {[%emt 0:10:48]} O-O-O {[%emt 0:10:20]} 12. d3 {[%emt 0:03:26]} Bc5 {[%emt 0:19:40]} 13. dxe4 {[%emt 0:05:30]} Rhe8 {[%emt 0:12:14]} 14. Nf5 {[%emt 0:14:35]} Nxe4 {[%emt 0:15:13]} 15. Bxe4 {[%emt 0:05:45]} Bxf5 {[%emt 0:00:56]} 16. Bxc6 {[%emt 0:00:10]} bxc6 {[%emt 0:00:30]} 17. Qxc6 {[%emt 0:03:20]} g5 {[%emt 0:02:19]} 18. Qa8+ {[%emt 0:04:31]} Kd7 {[%emt 0:00:09]} 19. Qf3 {[%emt 0:00:13]} Kc8 {[%emt 0:02:44]} 20. Be3 {[%emt 0:02:09]} Bxe3 {[%emt 0:04:26]} 21. fxe3 {[%emt 0:00:27]} Be4 {[%emt 0:00:46]} 22. Nxe4 {[%emt 0:04:31]} Qxe4 {[%emt 0:00:02]} 23. Qxe4 {[%emt 0:00:01]} Rxe4 {[%emt 0:00:09]} 24. Rxf7 {[%emt 0:00:07]} Rc4 {[%emt 0:00:28]} 25. Kf2 {[%emt 0:04:30]} Rd2 {[%emt 0:00:14]} 26. b3 {[%emt 0:00:29]} Rcc2 {[%emt 0:00:13]} 27. Re1 {[%emt 0:00:05]} Rxa2 {[%emt 0:00:14]} 28. Kf3 {[%emt 0:03:26]} Kb8 {[%emt 0:06:26]} 29. e4 {[%emt 0:04:23]} Rab2 {[%emt 0:02:20]} 30. e5 {[%emt 0:03:16]} Rxb3+ {[%emt 0:00:15]} 31. Ke4 {[%emt 0:00:12]} Rb6 {[%emt 0:01:15]} 32. e3 {[%emt 0:02:14]} Rb4+ {[%emt 0:01:24]} 33. Kf5 {[%emt 0:00:06]} Rb5 {[%emt 0:00:19]} 34. Re7 {[%emt 0:02:27]} a5 {[%emt 0:00:49]} 35. Rc1 {[%emt 0:04:56]} Re2 {[%emt 0:01:05]} 36. e4 {[%emt 0:01:32]} a4 {[%emt 0:00:31]} 37. Rexc7 {[%emt 0:04:25]} Rf2+ {[%emt 0:00:26]} 38. Ke6 {[%emt 0:01:16]} a3 {[%emt 0:00:13]} 39. Rc8+ {[%emt 0:01:52]} Kb7 {[%emt 0:00:02]} 40. R1c7+ {[%emt 0:02:48]} Kb6 {[%emt 0:00:17]} 41. Rb8+ {[%emt 0:10:13]} Kxc7 {[%emt 0:01:40]} 42. Rxb5 {[%emt 0:00:02]} a2 {[%emt 0:00:22]} 43. Ra5 {[%emt 0:00:03]} Rxh2 {[%emt 0:05:22]} 44. Ra7+ {[%emt 0:06:26]} Kb6 {[%emt 0:11:36]} 45. Ra8 {[%emt 0:00:06]} h5 {[%emt 0:00:19]} 46. Kf5 {[%emt 0:04:55]} Kb7 {[%emt 0:07:57]} 47. Ra4 {[%emt 0:02:52]} h4 {[%emt 0:00:38]} 48. e6 {[%emt 0:02:44]} hxg3 {[%emt 0:03:49]} 49. e7 {[%emt 0:00:04]} Rh8 {[%emt 0:00:23]} 50. Rxa2 {[%emt 0:00:06]} Kc7 {[%emt 0:01:20]} 51. Kf6 {[%emt 0:02:56]} Rh6+ {[%emt 0:01:34]} 52. Kg7 {[%emt 0:02:07]} Re6 {[%emt 0:00:16]} 53. Kf7 {[%emt 0:00:02]} Rxe4 {[%emt 0:00:06]} 54. e8=Q {[%emt 0:00:03]} Rxe8 {[%emt 0:00:05]} 55. Kxe8 {[%emt 0:00:01]} Kd6 {[%emt 0:00:08]} 56. Ra5 {[%emt 0:00:06]} 1-0

[Event "45th FIDE Olympiad 2024"]
[Site "Budapest"]
[Date "2024.09.15"]
[Round "5.23"]
[White "Zaw, Ye Htut"]
[Black "Al Abdali, Zeyad Saleh"]
[Result "1-0"]
[ECO "B47"]
[WhiteElo "1815"]
[BlackElo "1780"]
[PlyCount "83"]
[EventDate "2024.09.05"]
[EventType "team-tourn"]
[EventCountry "HUN"]
[WhiteTeam "Myanmar"]
[BlackTeam "Saudi Arabia"]
[WhiteTeamCountry "MYA"]
[BlackTeamCountry "SAU"]
[TimeControl "40/5400+30:1800+30"]

1. e4 c5 2. Nf3 e6 3. d4 cxd4 4. Nxd4 Nc6 5. Nc3 Qc7 6. a3 a6 7. Be3 b5 8. Be2 Bb7 9. O-O Ne5 10. Kh1 Nc4 11. Bxc4 Qxc4 12. Qd3 Rc8 13. Nb3 Qc7 14. Rfd1 Nf6 15. f3 Be7 16. Bd4 e5 17. Be3 O-O 18. Qe2 Rfd8 19. Qf2 Re8 20. Bb6 Qb8 21. Rd3 b4 22. axb4 Bxb4 23. Bc5 Rxc5 24. Nxc5 Qa7 25. N3a4 Rc8 26. Rb3 a5 27. c3 Rxc5 28. Rxb4 axb4 29. Qxc5 Qa8 30. cxb4 h6 31. b3 d5 32. exd5 Bxd5 33. Rc1 Kh7 34. Nb6 Qa3 35. Nxd5 Nxd5 36. b5 Qxb3 37. Qc2+ Qxc2 38. Rxc2 Kg8 39. Rc6 Ne7 40. Rd6 Nf5 41. Rd8+ Kh7 42. b6 1-0

[Event "45th FIDE Olympiad 2024"]
[Site "Budapest"]
[Date "2024.09.15"]
[Round "5.24"]
[White "Noritsyn, Nikolay"]
[Black "Idani, Pouya"]
[Result "1/2-1/2"]
[ECO "B53"]
[WhiteElo "2451"]
[BlackElo "2599"]
[Annotator "TA"]
[PlyCount "119"]
[EventDate "2024.09.05"]
[EventType "team-tourn"]
[EventCountry "HUN"]
[SourceTitle "playchess.com"]
[Source "ChessBase"]
[SourceQuality "1"]
[WhiteTeam "Canada"]
[BlackTeam "Iran"]
[WhiteTeamCountry "CAN"]
[BlackTeamCountry "IRI"]
[TimeControl "40/5400+30:1800+30"]

{[%evp 33,119,8,0,0,0,0,0,0,0,0,38,18,17,30,27,16,24,23,20,0,0,-35,-54,-41,-50,-58,-53,-53,0,0,0,0,14,8,26,6,10,6,21,16,20,22,16,33,19,35,28,0,0,-20,-15,-14,-8,-8,-8,-8,-8,-8,-8,-10,-8,-8,0,-8,0,-8,-12,-9,0,0,0,0,0,0,0,0,0,0,0,0,0,0,0,0,0,0,0,0]} 1. e4 {[%emt 0:00:04]} c5 {[%emt 0:01:29]} 2. Nf3 {[%emt 0:00:05]} d6 {[%emt 0:00:04]} 3. d4 {[%emt 0:00:08]} cxd4 {[%emt 0:00:04]} 4. Qxd4 {[%emt 0:00:07]} Nc6 {[%emt 0:00:45]} 5. Qd3 {[%emt 0:00:09]} g6 {[%emt 0:00:57]} 6. Nc3 {[%emt 0:00:24] B53: Sicilian: 2...d6: Lines with Qxd4.} Bg7 {[%emt 0:00:09]} 7. Be2 {[%emt 0:00:12]} Bg4 {[%emt 0:02:08]} 8. O-O {[%emt 0:04:23]} Nf6 {[%emt 0:04:12]} 9. Nd5 {[%emt 0:00:38]} O-O {[%emt 0:00:27]} 10. c3 {[%emt 0:00:21]} Nd7 {[%emt 0:04:03]} 11. Bg5 {[%emt 0:01:20]} h6 {[%emt 0:01:34]} 12. Bh4 {[%emt 0:00:33]} Nc5 {[%emt 0:10:36]} 13. Qc2 {[%emt 0:14:57]} g5 {[%emt 0:02:51]} 14. Bg3 {[%emt 0:00:15]} f5 {[%emt 0:02:54]} 15. exf5 {[%emt 0:00:17]} Bxf5 {[%emt 0:00:08]} 16. Qd1 {[%emt 0:00:20]} e6 {[%emt 0:11:44] [#]} 17. Ne3 $146 {[%emt 0:01:06]} ({White must play} 17. Bxd6 $1 $16 g4 (17... Qxd6 $2 {loses.} 18. Nf6+ Bxf6 19. Qxd6 $18) 18. Bxc5 gxf3 19. Bxf3) ({Predecessor:} 17. Bxd6 g4 18. Ne1 Ne4 19. Bxf8 Qxf8 20. Ne3 Rd8 21. Qb3 Nd2 22. Qxb7 Be4 23. Bxg4 {1-0 Midy,R (2174)-Razafindratsima,T (2438) Noisiel op 9th 2024 (2)}) 17... d5 $11 {[%emt 0:00:35]} 18. Rc1 {[%emt 0:13:15]} Ne4 {[%emt 0:06:25]} 19. Qb3 {[%emt 0:07:06]} Qe7 {[%emt 0:03:55]} 20. Nxf5 {[%emt 0:13:34]} Rxf5 {[%emt 0:00:10]} 21. Bd3 {[%emt 0:02:21]} Nc5 {[%emt 0:15:00]} (21... Rxf3 $5 22. gxf3 Nd2 $14) 22. Qd1 {[%emt 0:00:12]} Nxd3 {[%emt 0:00:05]} 23. Qxd3 {[%emt 0:00:04]} Rd8 {[%emt 0:05:02]} 24. Rfe1 {[%emt 0:01:14]} Qf6 {[%emt 0:01:09]} 25. Qb5 {[%emt 0:13:51]} Qf7 {[%emt 0:02:57]} 26. Nd2 {[%emt 0:01:44]} h5 {[%emt 0:01:51]} 27. f3 {[%emt 0:00:51]} h4 {[%emt 0:03:33]} 28. Bf2 {[%emt 0:00:07]} h3 {[%emt 0:01:49]} 29. gxh3 {[%emt 0:03:26]} d4 {[%emt 0:01:25]} 30. Qe2 {[%emt 0:01:29]} dxc3 {[%emt 0:00:08]} ({Better is} 30... Re5 $1 $15 31. Ne4 d3) 31. bxc3 $11 {[%emt 0:00:05]} Ne5 {[%emt 0:00:22]} 32. Bd4 {[%emt 0:01:32]} Ng6 {[%emt 0:04:13]} 33. Qxe6 {[%emt 0:02:52]} Nf4 {[%emt 0:01:00]} 34. Qxf7+ {[%emt 0:00:39]} Kxf7 {[%emt 0:02:39]} 35. Re4 {[%emt 0:01:50]} Ra5 {[%emt 0:03:39]} 36. Rc2 {[%emt 0:06:11]} Bxd4+ {[%emt 0:00:44]} 37. cxd4 {[%emt 0:00:05]} Rxd4 {[%emt 0:00:15]} 38. Rxd4 {[%emt 0:06:46]} ({Don't take} 38. Rc7+ Kf6 39. Rxd4 Ne2+ 40. Kf2 Nxd4 $14) 38... Ne2+ {[%emt 0:00:05]} 39. Kf2 {[%emt 0:00:10]} Nxd4 {[%emt 0:00:04]} 40. Rb2 {[%emt 0:00:37]} b6 {[%emt 0:00:56]} 41. Nb3 {[%emt 0:33:30]} Nxb3 {[%emt 0:36:03]} 42. axb3 {[%emt 0:00:08]} Rb5 {[%emt 0:00:03]} 43. Rc2 {[%emt 0:00:00]} a5 {[%emt 0:00:00]} 44. Rc3 {[%emt 0:00:00]} Rb4 {[%emt 0:00:00]} 45. Re3 {[%emt 0:00:00]} Kf6 {[%emt 0:00:00]} 46. Kg2 {[%emt 0:00:00]} Kf5 {[%emt 0:00:00]} 47. Kg3 {[%emt 0:00:00]} Kf6 {[%emt 0:00:00]} 48. Kf2 {[%emt 0:00:00]} Kf5 {[%emt 0:00:00]} 49. Kg3 {[%emt 0:00:00]} b5 {[%emt 0:00:00]} 50. Rc3 {[%emt 0:00:00]} Ke6 {[%emt 0:00:00]} 51. Rc6+ {[%emt 0:00:00]} Ke5 {[%emt 0:00:00]} 52. Ra6 {[%emt 0:00:00]} Rxb3 {[%emt 0:00:00]} 53. Rxa5 {[%emt 0:00:00]} Rb4 {[%emt 0:00:00]} 54. Ra8 {[%emt 0:00:00]} Rc4 {[%emt 0:00:07]} 55. Rg8 {[%emt 0:00:00]} Kf6 {[%emt 0:03:59]} 56. Rf8+ {[%emt 0:00:00]} Kg6 {[%emt 0:00:22]} 57. Rg8+ {[%emt 0:00:19]} Kh6 {[%emt 0:00:06]} 58. Rh8+ {[%emt 0:00:49]} Kg7 {[%emt 0:00:07]} 59. Rb8 {[%emt 0:00:18]} b4 {[%emt 0:00:05]} 60. Rb6 {[%emt 0:02:29]} 1/2-1/2

[Event "45th FIDE Olympiad 2024"]
[Site "Budapest"]
[Date "2024.09.15"]
[Round "5.24"]
[White "Khayat, Emad"]
[Black "Linn, Phone Myat"]
[Result "0-1"]
[ECO "E16"]
[WhiteElo "1907"]
[BlackElo "1763"]
[PlyCount "110"]
[EventDate "2024.09.05"]
[EventType "team-tourn"]
[EventCountry "HUN"]
[WhiteTeam "Saudi Arabia"]
[BlackTeam "Myanmar"]
[WhiteTeamCountry "SAU"]
[BlackTeamCountry "MYA"]
[TimeControl "40/5400+30:1800+30"]

1. d4 Nf6 2. Nf3 e6 3. c4 Bb4+ 4. Bd2 Qe7 5. g3 b6 6. Bg2 Bb7 7. O-O Bxd2 8. Qxd2 O-O 9. Nc3 d6 10. Qc2 Nbd7 11. e4 e5 12. Nd5 Bxd5 13. cxd5 Rac8 14. Rfe1 Rfe8 15. b4 Qd8 16. Rac1 h6 17. Qa4 a5 18. bxa5 exd4 19. axb6 Nxb6 20. Qxd4 Ra8 21. Rc2 Ra4 22. Qd1 Raxe4 23. Rxe4 Nxe4 24. Bf1 Nc5 25. Bb5 Re4 26. Nd4 Qe7 27. Kg2 Qe5 28. Rd2 Re1 29. Qf3 Qxd5 30. Qxd5 Nxd5 31. Bc6 Nb4 32. a3 Nxc6 33. Nxc6 Kf8 34. Ra2 Ke8 35. a4 Kd7 36. Nb8+ Kc8 37. Nc6 Re4 38. a5 Ra4 39. Rb2 Na6 40. Ne7+ Kd7 41. Nf5 Rxa5 42. g4 h5 43. h3 hxg4 44. hxg4 g6 45. Nh6 Ke6 46. f4 f5 47. Re2+ Kd7 48. g5 Nc5 49. Ng8 Ra4 50. Re7+ Kc6 51. Rg7 Ne6 52. Ne7+ Kb7 53. Rg8 Rxf4 54. Rxg6 Rg4+ 55. Kf3 Nxg5+ {0-} 0-1

[Event "45th FIDE Olympiad 2024"]
[Site "Budapest"]
[Date "2024.09.15"]
[Round "5.25"]
[White "Peralta, Fernando"]
[Black "Caruana, Fabiano"]
[Result "0-1"]
[ECO "E44"]
[WhiteElo "2558"]
[BlackElo "2798"]
[Annotator "TA"]
[PlyCount "60"]
[EventDate "2024.09.05"]
[EventType "team-tourn"]
[EventCountry "HUN"]
[SourceTitle "playchess.com"]
[Source "ChessBase"]
[SourceQuality "1"]
[WhiteTeam "Argentina"]
[BlackTeam "United States of America"]
[WhiteTeamCountry "ARG"]
[TimeControl "40/5400+30:1800+30"]

{[%evp 11,60,12,17,0,0,-4,5,8,14,-5,13,0,0,0,0,8,20,0,0,-9,0,0,0,0,0,0,0,-18,0,0,0,0,0,-8,-17,-7,-14,-14,0,0,0,0,0,-10,-17,-8,0,-97,-87,-1262,-1210]} 1. d4 {[%emt 0:00:04]} Nf6 {[%emt 0:00:04]} 2. c4 {[%emt 0:00:09]} e6 {[%emt 0:00:04]} 3. Nc3 {[%emt 0:00:22]} Bb4 {[%emt 0:00:07]} 4. e3 {[%emt 0:00:16]} b6 {[%emt 0:00:17]} 5. Nge2 {[%emt 0:00:17]} Ne4 {[%emt 0:00:31]} 6. Qc2 {[%emt 0:00:54]} Bb7 {[%emt 0:00:56]} 7. h4 {[%emt 0:00:12]} O-O {[%emt 0:00:48]} 8. a3 {[%emt 0:01:53]} Bxc3+ {[%emt 0:00:07]} 9. Nxc3 {[%emt 0:00:04] The position is equal.} Nxc3 {[%emt 0:00:37]} 10. Qxc3 {[%emt 0:00:07]} d5 {[%emt 0:00:38]} 11. b3 {[%emt 0:01:03]} Nd7 {[%emt 0:06:07]} 12. Bb2 {[%emt 0:00:12]} f5 {[%emt 0:00:19]} 13. f3 {[%emt 0:04:32]} Qe7 {[%emt 0:02:43]} 14. O-O-O {[%emt 0:15:40]} c5 {[%emt 0:10:47]} 15. h5 {[%emt 0:10:03]} h6 {[%emt 0:00:33]} 16. Kb1 {[%emt 0:00:21]} Rac8 {[%emt 0:09:50]} 17. dxc5 {[%emt 0:17:19]} Rxc5 {[%emt 0:02:36]} 18. Qd4 {[%emt 0:00:50]} e5 {[%emt 0:18:21]} 19. Qh4 {[%emt 0:02:06]} Nf6 {[%emt 0:00:06]} 20. Qg3 {[%emt 0:10:07]} dxc4 {[%emt 0:09:46]} 21. Bxc4+ {[%emt 0:00:22]} Bd5 {[%emt 0:00:08]} 22. Rc1 {[%emt 0:21:42]} Bxc4 {[%emt 0:11:42]} 23. Rxc4 {[%emt 0:00:06]} Rxc4 {[%emt 0:00:02]} 24. bxc4 {[%emt 0:00:06]} Re8 {[%emt 0:00:06]} 25. Qg6 {[%emt 0:01:24]} Qd7 {[%emt 0:00:34]} 26. Ka1 {[%emt 0:01:16]} Nh7 {[%emt 0:03:21]} 27. Rc1 {[%emt 0:06:06]} Nf8 {[%emt 0:02:27]} 28. Qg3 {[%emt 0:00:06]} Qd2 {[%emt 0:00:16]} 29. c5 {[%emt 0:03:50]} (29. f4 $11) 29... bxc5 $17 {[%emt 0:00:07]} 30. Rxc5 $2 {[%emt 0:00:12][%mdl 8192] [#]} (30. Qe1 $17 Qxg2 31. Qd1) 30... f4 $1 {[%emt 0:01:05] Weighted Error Value: White=0.45/Black=0.03 (flawless) .  Loses game:     	White=1     	---        Mistake:       	White=1     	---        OK:         	White=10    	Black=6      Best:        	---       	Black=1      Strong:       	---       	Black=1} 0-1

[Event "45th FIDE Olympiad 2024"]
[Site "Budapest"]
[Date "2024.09.15"]
[Round "5.25"]
[White "Prudente, Elmer"]
[Black "Njoroge, Martin"]
[Result "0-1"]
[ECO "B67"]
[WhiteElo "1949"]
[BlackElo "1972"]
[PlyCount "128"]
[EventDate "2024.09.05"]
[EventType "team-tourn"]
[EventCountry "HUN"]
[WhiteTeam "Guam"]
[BlackTeam "Kenya"]
[WhiteTeamCountry "GMA"]
[BlackTeamCountry "KEN"]
[TimeControl "40/5400+30:1800+30"]

1. e4 c5 2. Nf3 d6 3. d4 cxd4 4. Nxd4 Nf6 5. Nc3 a6 6. Bg5 e6 7. Qd2 Qc7 8. Bxf6 gxf6 9. O-O-O Bd7 10. f4 Nc6 11. Be2 h5 12. Kb1 O-O-O 13. Bf3 Be7 14. Rhe1 Kb8 15. Nxc6+ Bxc6 16. Qe2 Qa5 17. f5 h4 18. fxe6 fxe6 19. Qc4 Bd7 20. Bg4 Rc8 21. Qb3 Qe5 22. Nd5 Bd8 23. Ne3 Bc7 24. h3 Rhe8 25. Bf3 Bc6 26. a3 Qc5 27. Qb4 Ba5 28. Qxc5 dxc5 29. Rf1 Rcd8 30. c3 Bc7 31. Kc2 Bf4 32. Rfe1 e5 33. Nf5 c4 34. b3 cxb3+ 35. Kxb3 Kc7 36. Ng7 Re7 37. Rxd8 Kxd8 38. Rd1+ Kc7 39. Nf5 Rh7 40. Rd6 Bg5 41. a4 a5 42. Re6 Bd7 43. Re7 Rxe7 44. Nxe7 Be6+ 45. c4 Kd6 46. Nd5 Kc5 47. Kc3 f5 48. Kd3 b6 49. Be2 Bd7 50. Bd1 Bd8 51. Ne3 fxe4+ 52. Kxe4 Kb4 53. Nd5+ Kxc4 54. Kxe5 b5 55. axb5 Bxb5 56. Ne3+ Kd3 57. Nf5 Kd2 58. Bb3 a4 59. Ba2 Bf1 60. Kf4 Kc3 61. Ne3 Bd3 62. Bd5 Bb6 63. Nd1+ Kc2 64. Nf2 Bxf2 {0-} 0-1